Cogmind - Beta 10.2 *** ADVENTURER MODE // 2021.01.14 @ 12:13:23 Player: Frosst Result: Destroyed by G-34 Mercenary with Small Laser Performance ------------- Evolutions (0) 0 Regions Visited (1) 200 Robots Destroyed (11) 55 Value Destroyed (232) 232 Prototype IDs (0) 0 Alien Tech Used (0) 0 Bonus (0) 0 TOTAL SCORE: 487 Bonus ------- None Cogmind --------- Core Integrity 0/250 Matter 3/300 Energy 93/100 System Corruption 0% Temperature Cool (6) Movement Core (50) Location -10/Materials Parts ------- > --- POWER (1) -------- (None) > --- PROPULSION (2) --- (None) > --- UTILITY (2) ------ Structural Scanner > --- WEAPON (2) ------- (None) > --- INVENTORY (4) ---- Light Treads Wheel Small Laser Mining Laser Peak State ------------ > --- POWER ------------ (None) > --- PROPULSION ------- Aluminum Leg Aluminum Leg > --- UTILITY ---------- (None) > --- WEAPON ----------- Light Assault Rifle Grenade Launcher > --- INVENTORY -------- Wheel [Rating: 4] Favorites ----------- Power None Propulsion Aluminum Leg Leg Aluminum Leg Utility Structural Scanner Device Structural Scanner Weapon Light Assault Rifle Ballistic Gun Light Assault Rifle Launcher Grenade Launcher Build | -11 -10 ------- Run | Scr Mat Slots Evolved . | . . Power . | . . Propulsion . | . . Utility . | . . Weapon . | . . Parts Attached 5 | 3 2 Power . | . . Engine . | . . Core . | . . Reactor . | . . Propulsion 2 | 2 . Treads . | . . Leg 2 | 2 . Wheel . | . . Hover . | . . Flight . | . . Utility 1 | . 1 Device 1 | . 1 Storage . | . . Processor . | . . Hackware . | . . Protection . | . . Artifact . | . . Weapon 2 | 1 1 Energy Gun . | . . Energy Cannon . | . . Ballistic Gun 1 | 1 . Ballistic Cannon . | . . Launcher 1 | . 1 Special Weapon . | . . Impact Weapon . | . . Slashing Weapon . | . . Piercing Weapon . | . . Special Melee Weapon . | . . Unidentified Prototypes . | . . Parts Lost 2 | . 2 Power . | . . Propulsion 2 | . 2 Utility . | . . Weapon . | . . Highest Loss Streak 2 | . 2 Average Slot Usage (%) 50 | . 50 Leg 27 | . 27 Ballistic Gun 11 | . 11 Launcher 10 | . 10 Naked Turns 2 | . 2 Heaviest Build 4 | 1 4 Greatest Support 20 | 20 20 Greatest Overweight (x) . | . . Average Overweight (x) . | . . Largest Inventory Capacity 4 | 4 4 Average Capacity 4 | 4 4 Most Carried 4 | 2 4 Average Carried 2 | . 2 Final Capacity 4 | 4 4 Final Carried 4 | 1 4 Class Distribution -------------------- 100% | Mutant Dominant Class ---------------- Mutant | -10/Materials Resources | -11 -10 ----------- Run | Scr Mat Matter Collected 66 | 33 33 Remotely . | . . Salvage Created 253 | 46 207 Parts 19 | 2 17 Haulers Intercepted 1 | . 1 Recyclers Shooed . | . . Parts Field Recycled . | . . Retrieved Matter . | . . Parts Self-Destructed . | . . Prevented . | . . Kills | -11 -10 ------- Run | Scr Mat Combat Hostiles Destroyed 5 | 1 4 Guns 2 | 1 1 AOE 3 | . 3 Classes Destroyed 4 | 1 3 Worker 2 | . 2 Builder 3 | . 3 Hauler 1 | . 1 Grunt 5 | 1 4 Best Kill Streak 7 | 1 7 Combat Bots Only 4 | 1 4 Max Kills in Single Turn 3 | 1 3 Gunslinging . | . . Exploded 1 | . 1 Melee . | . . Uniques/NPCs Destroyed . | . . Combat | -11 -10 -------- Run | Scr Mat Damage Taken 540 | 42 498 Core 251 | 25 226 Absorbed by Shields . | . . Core Remaining (%) 90 | 90 . Volleys Fired 23 | 5 18 Largest 2 | 1 2 Hottest 50 | 20 50 Shots Fired 33 | 5 28 Gun 23 | 5 18 Cannon . | . . Launcher 10 | . 10 Special . | . . Kinetic 23 | 5 18 Thermal . | . . Explosive 10 | . 10 Electromagnetic . | . . Robot Hit Streak 11 | 5 11 Robot Miss Streak 2 | . 2 Penetration Max . | . . Secondary Targets . | . . Shots Hit Robots 23 | 5 18 Core Hits 20 | 3 17 Critical Hits . | . . Critical Kills . | . . Critical Parts Destroyed . | . . Melee Attacks . | . . Impact . | . . Slashing . | . . Piercing . | . . Sneak Attacks . | . . Combat Hostiles . | . . Follow-up Attacks . | . . Damage Inflicted 558 | 41 517 Guns 147 | 41 106 Cannons . | . . Explosions 411 | . 411 Melee . | . . Ramming . | . . Kinetic 147 | 41 106 Thermal . | . . Explosive 411 | . 411 Electromagnetic . | . . Impact . | . . Slashing . | . . Piercing . | . . Highest Corruption . | . . Average Corruption . | . . Corruption Purged . | . . Overload Shots . | . . Overflow Damage . | . . Projectiles . | . . Explosions . | . . Melee . | . . Knockbacks . | . . Impact . | . . Kinetic . | . . Secondary . | . . Self-Inflicted Damage 60 | . 60 Shots 5 | . 5 Rammed . | . . Targets Rammed . | . . Kicked . | . . Crushed . | . . Highest Temperature 15 | 2 15 Average Temperature 5 | 1 6 Received Heat Transfer 354 | 30 324 Siege Activations . | . . Robots Corrupted . | . . Combat Hostiles . | . . Parts Fried . | . . Impact Corruptions . | . . Robots Melted . | . . Combat Hostiles . | . . Parts Melted . | . . Heat Transferred . | . . Parts Sabotaged . | . . Parts Stolen . | . . Parts Stripped . | . . Power Chain Reactions . | . . Missiles Intercepted . | . . Alert | -11 -10 ------- Run | Scr Mat Peak Influence 175 | 20 175 Initial 11 | . 11 Average 88 | . 119 Maximum Alert Level . | . . Low Security (%) 100 | 100 100 Level 1 . | . . Level 2 . | . . Level 3 . | . . Level 4 . | . . Level 5 . | . . High Security . | . . Max Security . | . . Squads Dispatched . | . . Investigation . | . . Extermination . | . . Reinforcement . | . . Assault . | . . Garrison . | . . Intercept . | . . Construction Impeded . | . . Haulers Reinforced . | . . Stealth | -11 -10 --------- Run | Scr Mat Distress Signals . | . . Communications Jammed . | . . Distress Signals . | . . Times Spotted 13 | 1 12 Peak Tracking Total 4 | 1 4 Tactical Retreats . | . . Traps | -11 -10 ------- Run | Scr Mat Traps Triggered . | . . Indirectly . | . . Trap Hack Attempts . | . . Triggered . | . . Disarmed . | . . Reprogrammed . | . . Reused . | . . Traps Extracted . | . . Installed . | . . Triggered . | . . Machines | -11 -10 ---------- Run | Scr Mat Machines Disabled 3 | . 3 Max in Single Turn 1 | . 1 Machines Sabotaged . | . . Garrisons Compromised . | . . Overloaded Fab Kills . | . . Fab Network Shutdowns . | . . Hacking | -11 -10 --------- Run | Scr Mat Machines Accessed 1 | . 1 Terminals 1 | . 1 Fabricators . | . . Repair Stations . | . . Recycling Units . | . . Scanalyzers . | . . Garrison Access . | . . Total Hacks 1 | . 1 Successful . | . . Failed 1 | . 1 Catastrophic . | . . Database Lockouts . | . . Manual . | . . Terminals 1 | . 1 Fabricators . | . . Repair Stations . | . . Recycling Units . | . . Scanalyzers . | . . Garrison Access . | . . Terminal Hacks . | . . Fabricator Hacks . | . . Repair Station Hacks . | . . Recycling Unit Hacks . | . . Scanalyzer . | . . Garrison Access Hacks . | . . Unauthorized Hacks . | . . Terminals . | . . Fabricators . | . . Repair Stations . | . . Recycling Units . | . . Scanalyzers . | . . Garrison Access . | . . Data Cores Recovered . | . . Used . | . . Hacking Detections . | . . Full Trace Events . | . . Feedback Events . | . . Feedback Blocked . | . . Robot Schematics Acquired . | . . Robots Built . | . . Matter . | . . Time . | . . Total Robot Build Rating . | . . Part Schematics Acquired . | . . Parts Built . | . . Matter . | . . Time . | . . Total Part Build Rating . | . . Parts Repaired . | . . Time . | . . Parts Recycled . | . . Recycled Matter . | . . Retrieved Matter . | . . Retrieved Components . | . . Parts Scanalyzed . | . . Part Schematics Acquired . | . . Parts Damaged . | . . Bothacking | -11 -10 ------------ Run | Scr Mat Used RIF Installer . | . . Robots Hacked . | . . Non-combat . | . . Combat . | . . Robot Hacks Applied . | . . Relay Couplers Released . | . . Robots Rewired . | . . Allies Hacked . | . . Hacks Repelled . | . . Allies | -11 -10 -------- Run | Scr Mat Total Allies . | . . Largest Group . | . . Highest-Rated Group . | . . Highest-Rated Ally . | . . Total Orders . | . . Ally Attacks . | . . Total Damage . | . . Kills . | . . Allies Corrupted . | . . Allies Melted . | . . Intel | -11 -10 ------- Run | Scr Mat Robot Analysis Total . | . . Derelict Logs Recovered . | . . Drone Launches . | . . Drone Recoveries . | . . Exploration | -11 -10 ------------- Run | Scr Mat Turns Passed 570 | 145 425 Spaces Moved 454 | 137 317 Core 65 | 55 10 Treads . | . . Legs 389 | 82 307 Wheels . | . . Hover . | . . Flight . | . . Fastest Speed 50 | 50 50 Average Speed 109 | 91 117 Slowest Speed 120 | 120 120 Overloaded Moves . | . . Propulsion Burnouts . | . . Robots Hopped . | . . Cave-ins Triggered . | . . Exploration Rate (%) 23 | 7 39 Regions Visited 1 Branch Regions . Pre-discovered Areas . | . . Known Exits Taken . | . . Unknown Exits Taken 1 | 1 . Scrap Searched . | . . Spaces Dug . | . . Terrain Destroyed 45 | . 45 Melee . | . . Projectile . | . . AOE 45 | . 45 Terrain Rammed . | . . Walls Destroyed . | . . Machines Disabled . | . . Actions | -11 -10 --------- Run | Scr Mat Total 496 | 152 344 Wait 5 | 4 1 Move 453 | 136 317 Hop . | . . Pick Up 8 | 4 4 Fast Attach 1 | . 1 Attach 4 | 3 1 Detach . | . . Swap . | . . Drop 2 | . 2 Fire 23 | 5 18 Melee . | . . Ram . | . . Kick . | . . Crush . | . . Escape Stasis . | . . Rewire . | . . Trap . | . . Miscellaneous . | . . Route ------- -11/Scrapyard -10/Materials (discovered 2 exits: [*Mat x2]) History --------- Turn | Location | Event 2 | -11/Scrapyard | Met Revision 17 104 | -11/Scrapyard | Discovered new exit (range 8) 146 | -11/Scrapyard | Entered Materials 223 | -10/Materials | Discovered new exit (range 16) 304 | -10/Materials | Build established: Mutant 375 | -10/Materials | Discovered new exit (range 13) 505 | -10/Materials | Core integrity fell below 50% 561 | -10/Materials | Core integrity fell below 20% 571 | -10/Materials | Destroyed by G-34 Mercenary with Small Laser Last Messages --------------- The unstable cave ceiling collapses. U-05 Engineer lays Concrete. U-05 Engineer builds a Wall. U-05 Engineer lays Concrete. U-05 Engineer builds a Wall. U-05 Engineer lays Concrete. [Achievement: Oops] U-05 Engineer lays Concrete. U-05 Engineer builds a Wall. Dropped Lgt. Assault Rifle. Dropped Grenade Launcher. U-05 Engineer builds a Wall. U-05 Engineer lays Concrete. U-05 Engineer builds a Wall. U-05 Engineer lays Concrete. U-05 Engineer builds a Wall. 00544_ U-05 Engineer builds a Wall. 00558_ Aluminum Leg destroyed. 00566_ Acquired Structural Scanner. [Achievement: First Step to Greatness] Map ----- +----------------------------------------------------+ | ????????????????????????????????????????# #????? | | ???????????????#####????????????????????# ###### | | ???????????????# #???########?????????# # != | | ???????????????# < ##### ############## # != | | ???????????????# # == | | ???????????????# [[* # | | ?????########### [% + | | ?????# # """" """"" # """ | | ?????# """ """ # """" """""""" | | ?????# """ """ # "" " """ """ | | ?????# """ """ # = | | ?????# # # | | ?????# + #####+########### ## # | | ?????# # % # #?# ?????????# ##=### | | ?????# #% % # #?# "?????????# ## ### | | ?????###########* ###?? T?????????# ##* # | | ??????????????# # #?? "?????????# + | | ??????????????# %* ###?? ?????????# # | | ??????????????+ ! | #???? *?????????# # | | ??????????????# #???? ?????????# # | | ??????????????# #???? ?????????# """" # | | ####??????????# """"" #????####+####### """" # | | ############ """"" #??????# """" | | """"" ######## | | #!!! # | | #@!! # #######+######+ | | ###################+##!! # #?????????????? | | ##????????????????????# # #?????????????? | | #?????????????????????# # #?????????????? | | #?????????????????????# w # #?????????????? | | #?????????????????????# g + #?????????????? | | #?????? ?????????????# w # #?????????????? | | #???? #????????????# g # #?????????????? | | #??R ?#????????????# u u # #?????????????? | | # """ #????????????# # #?????????????? | | + #????????????+ # #?????????????? | | # """ #????????????# = # ##????????????? | | +##??"" ?#????????????####+### #????????????? | | ??????? ????????????????????# ##????????????? | | ??????????????????????????????# ##????????????? | | ??????????????????????????????# ##????????????? | | ??????????????????????????????## ##????????????? | | ??????????????????????????????## ##????????????? | | ???????????????????????????????# T#????????????? | | ???????????????????????????????# ##????????????? | | ???????????????????????????????# #?????????????? | | ???????????????????????????????# #?????????????? | | ???????????????????????????????#[] #?????????????? | | ???????????????????????????????# ????????? | | ??????????????????????????????? !!#???????? | +----------------------------------------------------+ Best States ------------- Heat Dissipation 25 Energy Generation 5 Energy Capacity 100 Matter Stores 103 Matter Capacity 300 Sight Range 16 Terrain Scan Density 10 Resistance: KI 20 Resistance: TH 20 Resistance: EX 20 Resistance: EM 20 Resistance: I 20 Resistance: S 20 Resistance: P 20 Evasion (%) 50 Offensive Hacking 10 Item Schematics ----------------- None Robot Schematics ------------------ None Fabricated ------------ Nothing Alien Tech Used ----------------- None Achievements -------------- Crack Shot First Step to Greatness Loot Pinata Oops Challenges ------------ None Game ------ Seed HackingSensorRedirector Manual? 0 Play Time 00:14:31 Cumulative 0.4 hours Start 2021.01.14 @ 11:49:18 End 2021.01.14 @ 12:13:23 Sessions 1 Manual Loads 0 Difficulty Adventurer Special Mode None Game No. 1 Rogue 0 Adventurer 1 Explorer 0 Win Type - Total 0 Types 0/0/0/0/0/0/0/0/0 Lore% 0 Gallery% 0 Achievement% 1 Wizard Run 0 Options --------- ASCII 0 Keyboard 0 Movement Mouse Keybinds 0 Fullscreen 2 Font 18/SmallcapsGlow Map View 76x50 Tactical HUD 1 Map Filters NONE Filters NONE Steam 1 RUN: 1cfc3d0b-246b-4685-8420-aa0837faff0a